[Event "BL 2016-17"]
[Site "Germany"]
[Date "2017.02.19"]
[Round "8"]
[White "Thiede, Lars"]
[Black "Boguslavsky, Oleg"]
[Result "1-0"]
[ECO "A00"]
[WhiteElo "2422"]
[BlackElo "2435"]
[Annotator "RC"]
[PlyCount "101"]
[EventDate "2017.??.??"]
[EventType "team-tourn"]
[EventCountry "GER"]
[SourceTitle "playchess.com"]
[Source "ChessBase"]
[SourceQuality "1"]
[WhiteTeam "SF Berlin"]
[BlackTeam "Hockenheim"]
[TimeControl "40/6000+30:3000+30"]

1. g3 {[%emt 0:00:00]} e5 {[%emt 0:00:24]} 2. c4 {[%emt 0:00:00]} Nc6 {[%emt 0:00:07]} 3. Bg2 {[%emt 0:00:00]} Bc5 {[%emt 0:00:44]} 4. Nc3 {[%emt 0:00:04]} a6 {[%emt 0:00:36]} 5. Nf3 {[%emt 0:00:08]} d6 {[%emt 0:00:36]} 6. e3 {[%emt 0:00:48]} Bg4 {[%emt 0:05:28]} 7. h3 {[%emt 0:00:52]} Bh5 {[%emt 0:00:58]} 8. O-O {[%emt 0:02:50]} Nf6 {[%emt 0:07:21]} 9. g4 {[%emt 0:02:37]} Bg6 {[%emt 0:00:28]} 10. d4 {[%emt 0:00:26]} Ba7 {[%emt 0:00:00]} 11. b3 {[%emt 0:02:15]} O-O {[%emt 0:19:38]} 12. dxe5 {[%emt 0:04:19]} dxe5 {[%emt 0:00:27]} 13. Ba3 {[%emt 0:00:20]} Re8 {[%emt 0:01:24]} 14. Qxd8 Raxd8 {[%emt 0:02:52]} 15. Nh4 {[%emt 0:26:02]} Bd3 {[%emt 0:20:23]} 16. Rfd1 {[%emt 0:00:47]} e4 {[%emt 0:08:50]} 17. Nf5 {[%emt 0:11:59]} h6 {[%emt 0:04:07]} 18. Rac1 {[%emt 0:06:12]} Kh7 {[%emt 0:05:55]} 19. Na4 {[%emt 0:08:48]} Be2 {[%emt 0:07:07]} 20. Rxd8 {[%emt 0:05:11]} Rxd8 {[%emt 0:00:08]} 21. Bb2 {[%emt 0:00:20]} Bf3 {[%emt 0:03:05]} 22. Bxf6 {[%emt 0:05:31]} gxf6 {[%emt 0:00:05]} 23. Nc3 {[%emt 0:01:58]} Bxg2 {[%emt 0:03:39]} 24. Kxg2 {[%emt 0:01:27]} Rd2 {[%emt 0:00:03]} 25. Nxe4 {[%emt 0:03:35]} Rxa2 {[%emt 0:00:03]} 26. Rd1 {[%emt 0:01:22]} Kg6 {[%emt 0:05:51]} 27. Rd7 {[%emt 0:06:38]} Bb6 {[%emt 0:00:38]} 28. c5 {[%emt 0:09:31]} Ba5 {[%emt 0:00:01]} 29. b4 {[%emt 0:00:55]} Ra4 {[%emt 0:00:27]} 30. Nc3 {[%emt 0:05:27]} Rxb4 {[%emt 0:00:20]} 31. Nd5 {[%emt 0:00:07]} Rc4 {[%emt 0:03:07]} 32. Nf4+ {[%emt 0:00:11]} Rxf4 {[%emt 0:00:15]} 33. exf4 {[%emt 0:00:06]} b5 {[%emt 0:02:49]} 34. Ne3 {[%emt 0:02:06]} b4 {[%emt 0:01:07]} 35. Nc4 {[%emt 0:00:45]} b3 {[%emt 0:00:09]} 36. Rd3 {[%emt 0:01:51]} Bb4 {[%emt 0:00:19]} 37. Rxb3 {[%emt 0:00:10]} a5 {[%emt 0:00:24]} 38. Rb1 {[%emt 0:00:42]} Kg7 {[%emt 0:03:26]} 39. Ra1 {[%emt 0:01:26]} Bxc5 {[%emt 0:01:33]} 40. Nxa5 {[%emt 0:00:50]} Nd4 {[%emt 0:53:44]} 41. Nc4 {[%emt 0:04:02]} Ne6 {[%emt 0:00:00]} 42. Kf3 {[%emt 0:02:16]} Nd4+ {[%emt 0:00:00]} 43. Ke4 {[%emt 0:01:05]} Ne6 {[%emt 0:00:00]} 44. Ne3 {[%emt 0:02:32]} Bf8 {[%emt 0:00:00]} 45. Nf5+ {[%emt 0:01:27]} Kh7 {[%emt 0:00:00]} 46. Ng3 {[%emt 0:03:12]} Ng7 {[%emt 0:00:00]} 47. Ra8 {[%emt 0:03:56]} Bc5 {[%emt 0:00:00]} 48. f5 {[%emt 0:06:17]} Bxf2 {[%emt 0:00:00]} 49. Ne2 {[%emt 0:00:07]} Bc5 {[%emt 0:00:00]} 50. Kd5 {[%emt 0:04:42]} Bd6 {[%emt 0:00:00]} 51. Nc3 {[%emt 0:00:41]} 1-0

[Event "BL 2016-17"]
[Site "Germany"]
[Date "2017.02.19"]
[Round "8"]
[White "Walter, Stefan"]
[Black "Bruedigam, Martin"]
[Result "1/2-1/2"]
[ECO "A40"]
[WhiteElo "2414"]
[BlackElo "2405"]
[Annotator "RC"]
[PlyCount "203"]
[EventDate "2017.??.??"]
[EventType "team-tourn"]
[EventCountry "GER"]
[SourceTitle "playchess.com"]
[Source "ChessBase"]
[SourceQuality "1"]
[WhiteTeam "Griesheim"]
[BlackTeam "König Tegel"]
[TimeControl "40/6000+30:3000+30"]

1. d4 {[%emt 0:00:00]} Nf6 {[%emt 0:00:05]} 2. c4 {[%emt 0:00:00]} e6 {[%emt 0:00:05]} 3. g3 {[%emt 0:00:10]} Bb4+ {[%emt 0:00:14]} 4. Bd2 {[%emt 0:00:19]} a5 {[%emt 0:00:31]} 5. Bg2 {[%emt 0:01:11]} d6 {[%emt 0:01:21]} 6. e4 {[%emt 0:01:59]} e5 {[%emt 0:04:14]} 7. Ne2 {[%emt 0:01:02]} Nbd7 {[%emt 0:07:51]} 8. O-O {[%emt 0:03:36]} O-O {[%emt 0:12:37]} 9. Nbc3 {[%emt 0:14:39]} exd4 {[%emt 0:01:50]} 10. Nxd4 {[%emt 0:00:08]} Re8 {[%emt 0:01:54]} 11. Qc2 {[%emt 0:04:15]} Ne5 {[%emt 0:06:43]} 12. b3 {[%emt 0:03:28]} Bc5 {[%emt 0:11:36]} 13. Nf5 {[%emt 0:17:25]} Nc6 {[%emt 0:21:31]} 14. Rad1 {[%emt 0:07:10]} Nd4 {[%emt 0:06:01]} 15. Nxd4 {[%emt 0:06:46]} Bxd4 {[%emt 0:00:04]} 16. Nb5 {[%emt 0:02:05]} Bb6 {[%emt 0:02:20]} 17. Bc3 {[%emt 0:03:48]} Qe7 {[%emt 0:01:41]} 18. Rfe1 {[%emt 0:06:50]} Bg4 {[%emt 0:03:59]} 19. Rd2 {[%emt 0:01:50]} Rad8 {[%emt 0:01:04]} 20. h3 {[%emt 0:02:19]} Bc8 {[%emt 0:05:54]} 21. Rde2 {[%emt 0:02:46]} Nd7 {[%emt 0:04:46]} 22. Kh2 {[%emt 0:01:29]} h5 {[%emt 0:03:00]} 23. Bb2 {[%emt 0:09:35]} Ne5 {[%emt 0:04:18]} 24. Qc3 {[%emt 0:03:51]} f6 {[%emt 0:01:28]} 25. f4 {[%emt 0:01:03]} Nc6 {[%emt 0:01:39]} 26. Bf3 {[%emt 0:02:19]} Qd7 {[%emt 0:02:05]} 27. Bg2 {[%emt 0:01:11]} Bc5 {[%emt 0:01:07]} 28. Qd3 {[%emt 0:00:50]} Nb4 {[%emt 0:01:27]} 29. Qf3 {[%emt 0:01:52]} Qf7 {[%emt 0:00:29]} 30. Ba1 {[%emt 0:03:03]} Re7 {[%emt 0:00:47]} 31. Nd4 {[%emt 0:00:22]} Bxd4 {[%emt 0:01:20]} 32. Bxd4 {[%emt 0:00:07]} b6 {[%emt 0:01:08]} 33. g4 {[%emt 0:04:55]} Bb7 {[%emt 0:00:25]} 34. gxh5 {[%emt 0:00:57]} Rde8 {[%emt 0:00:29]} 35. Qg4 {[%emt 0:01:43]} Nd3 {[%emt 0:01:08]} 36. Rd1 {[%emt 0:01:37]} f5 {[%emt 0:00:20]} 37. Qg5 {[%emt 0:00:40]} fxe4 {[%emt 0:00:41]} 38. f5 {[%emt 0:00:58]} c5 {[%emt 0:00:07]} 39. f6 {[%emt 0:00:29]} cxd4 {[%emt 0:00:51]} 40. fxe7 {[%emt 0:00:40]} Qf4+ {[%emt 0:50:34]} 41. Qxf4 {[%emt 0:03:47]} Nxf4 {[%emt 0:00:00]} 42. Bxe4 {[%emt 0:06:54]} Nxe2 {[%emt 0:00:00]} 43. Bxb7 {[%emt 0:00:09]} Rxe7 {[%emt 0:00:00]} 44. Rd2 {[%emt 0:06:36]} Re3 {[%emt 0:00:00]} 45. Bg2 {[%emt 0:17:33]} d3 {[%emt 0:00:00]} 46. Bf1 {[%emt 0:00:47]} Nf4 {[%emt 0:00:00]} 47. Kg1 {[%emt 0:03:53]} Rf3 {[%emt 0:00:00]} 48. Rf2 {[%emt 0:00:25]} Rxf2 {[%emt 0:00:00]} 49. Kxf2 {[%emt 0:00:07]} d2 {[%emt 0:00:00]} 50. Be2 {[%emt 0:00:07]} Kf7 {[%emt 0:00:00]} 51. Bd1 {[%emt 0:02:52]} Kf6 {[%emt 0:00:00]} 52. Ke3 {[%emt 0:00:12]} Ke5 {[%emt 0:00:00]} 53. Kxd2 {[%emt 0:01:16]} Kd4 {[%emt 0:00:00]} 54. Bg4 {[%emt 0:01:31]} Nd3 {[%emt 0:00:00]} 55. Bf5 {[%emt 0:00:48]} Nf4 {[%emt 0:00:00]} 56. Bg4 {[%emt 0:00:16]} a4 {[%emt 0:00:00]} 57. Kc2 {[%emt 0:00:45]} a3 {[%emt 0:00:00]} 58. Kd2 {[%emt 0:01:30]} Nd3 {[%emt 0:00:00]} 59. Bf5 {[%emt 0:00:46]} Nb4 {[%emt 0:00:00]} 60. Bb1 {[%emt 0:00:19]} Nc6 {[%emt 0:00:00]} 61. Bg6 {[%emt 0:02:11]} Nb4 {[%emt 0:00:00]} 62. Bb1 {[%emt 0:00:04]} d5 {[%emt 0:00:26]} 63. h4 {[%emt 0:04:31]} dxc4 {[%emt 0:01:41]} 64. bxc4 {[%emt 0:00:07]} Nc6 {[%emt 0:01:54]} 65. Bh7 {[%emt 0:01:05]} Ne5 {[%emt 0:02:50]} 66. Bg8 {[%emt 0:01:39]} Nxc4+ {[%emt 0:01:56]} 67. Kc2 {[%emt 0:00:09]} Na5 {[%emt 0:00:14]} 68. Bf7 {[%emt 0:00:14]} b5 {[%emt 0:00:10]} 69. Bg8 {[%emt 0:02:10]} b4 {[%emt 0:00:05]} 70. Bf7 {[%emt 0:00:04]} Nc6 {[%emt 0:00:33]} 71. Kb3 {[%emt 0:00:47]} Kc5 {[%emt 0:00:05]} 72. Ka4 {[%emt 0:00:27]} Ne5 {[%emt 0:01:39]} 73. Bg8 {[%emt 0:00:38]} Nf3 {[%emt 0:00:33]} 74. Bf7 {[%emt 0:00:23]} Nxh4 {[%emt 0:00:25]} 75. Kb3 {[%emt 0:00:42]} Nf3 {[%emt 0:00:19]} 76. Ka4 {[%emt 0:00:44]} Nd4 {[%emt 0:00:58]} 77. Bg8 {[%emt 0:00:16]} Ne2 {[%emt 0:00:33]} 78. Be6 {[%emt 0:00:26]} Nc3+ {[%emt 0:02:26]} 79. Kb3 {[%emt 0:00:27]} Ne4 {[%emt 0:01:05]} 80. Bf7 {[%emt 0:00:43]} Nf2 {[%emt 0:00:58]} 81. Ka4 {[%emt 0:00:16]} Nh1 {[%emt 0:00:04]} 82. Bg8 {[%emt 0:00:28]} Ng3 {[%emt 0:00:04]} 83. Bf7 {[%emt 0:00:04]} Nf1 {[%emt 0:00:13]} 84. Bg8 {[%emt 0:00:08]} Ne3 {[%emt 0:00:12]} 85. Bf7 {[%emt 0:00:13]} Nd1 {[%emt 0:00:15]} 86. Bg8 {[%emt 0:00:17]} Nb2+ {[%emt 0:00:25]} 87. Kb3 {[%emt 0:00:18]} Nd3 {[%emt 0:00:06]} 88. Bf7 {[%emt 0:01:28]} Ne5 {[%emt 0:02:39]} 89. Be8 {[%emt 0:01:06]} Nc4 {[%emt 0:00:27]} 90. Bf7 {[%emt 0:00:18]} Nd6 {[%emt 0:00:24]} 91. Bg8 {[%emt 0:00:43]} Kb5 {[%emt 0:00:13]} 92. Bd5 {[%emt 0:01:19]} Nf5 {[%emt 0:00:10]} 93. Bc4+ {[%emt 0:00:34]} Ka5 {[%emt 0:00:25]} 94. Bf7 {[%emt 0:00:07]} Nd4+ {[%emt 0:00:57]} 95. Kc4 {[%emt 0:00:05]} Nf3 {[%emt 0:00:13]} 96. Kb3 {[%emt 0:00:18]} Nd2+ {[%emt 0:01:25]} 97. Kc2 {[%emt 0:00:08]} Ne4 {[%emt 0:00:07]} 98. Kb3 {[%emt 0:01:36]} Nc5+ {[%emt 0:01:13]} 99. Kc4 {[%emt 0:00:02]} Ne4 {[%emt 0:00:14]} 100. Kb3 {[%emt 0:00:12]} Kb5 {[%emt 0:00:16]} 101. Be8+ {[%emt 0:00:05]} Kc5 {[%emt 0:00:35]} 102. Kc2 1/2-1/2

[Event "BL 2016-17"]
[Site "Germany"]
[Date "2017.02.19"]
[Round "8"]
[White "Koop, Thorben"]
[Black "Meister, Peter"]
[Result "1/2-1/2"]
[ECO "A06"]
[WhiteElo "2400"]
[BlackElo "2363"]
[Annotator "RC"]
[PlyCount "120"]
[EventDate "2017.??.??"]
[EventType "team-tourn"]
[EventCountry "GER"]
[SourceTitle "playchess.com"]
[Source "ChessBase"]
[SourceQuality "1"]
[WhiteTeam "Werder Bremen"]
[BlackTeam "Bayern München"]
[TimeControl "40/6000+30:3000+30"]

1. Nf3 {[%emt 0:00:00]} d5 {[%emt 0:00:30]} 2. d4 {[%emt 0:01:07]} Bf5 {[%emt 0:00:58]} 3. c4 {[%emt 0:04:55]} e6 {[%emt 0:00:22]} 4. Bg5 {[%emt 0:02:48]} Be7 {[%emt 0:14:25]} 5. Bxe7 {[%emt 0:03:06]} Nxe7 {[%emt 0:07:36]} 6. Nc3 {[%emt 0:01:50]} Nbc6 {[%emt 0:02:45]} 7. e3 {[%emt 0:10:22]} O-O {[%emt 0:01:44]} 8. Be2 {[%emt 0:02:06]} a6 {[%emt 0:03:05]} 9. O-O {[%emt 0:08:29]} dxc4 {[%emt 0:12:24]} 10. Bxc4 {[%emt 0:01:38]} Qd6 {[%emt 0:02:26]} 11. Rc1 {[%emt 0:13:08]} Rad8 {[%emt 0:04:18]} 12. Qe2 {[%emt 0:08:07]} e5 {[%emt 0:20:48]} 13. d5 {[%emt 0:09:50]} Na5 {[%emt 0:08:42]} 14. Rfd1 {[%emt 0:02:52]} Bg4 {[%emt 0:14:45]} 15. Bd3 {[%emt 0:10:10]} f5 {[%emt 0:00:06]} 16. e4 {[%emt 0:00:53]} Ng6 {[%emt 0:03:58]} 17. exf5 {[%emt 0:07:03]} Nf4 {[%emt 0:00:06]} 18. Qe3 {[%emt 0:02:13]} Nxd3 {[%emt 0:02:01]} 19. Qxd3 {[%emt 0:03:56]} Rxf5 {[%emt 0:01:26]} 20. h3 {[%emt 0:02:38]} Bxf3 {[%emt 0:04:52]} 21. Qxf5 {[%emt 0:00:08]} Bxd1 {[%emt 0:00:37]} 22. Rxd1 {[%emt 0:00:33]} Nc4 {[%emt 0:00:41]} 23. Ne4 {[%emt 0:04:58]} Qg6 {[%emt 0:01:15]} 24. Qxg6 {[%emt 0:01:29]} hxg6 {[%emt 0:00:04]} 25. b3 {[%emt 0:03:05]} Nd6 {[%emt 0:00:19]} 26. Ng5 {[%emt 0:02:10]} Nb5 {[%emt 0:01:28]} 27. Ne6 {[%emt 0:02:32]} Rd6 {[%emt 0:00:05]} 28. Rc1 {[%emt 0:00:54]} Rxd5 {[%emt 0:01:20]} 29. Nxc7 {[%emt 0:00:09]} Nxc7 {[%emt 0:00:58]} 30. Rxc7 {[%emt 0:00:02]} Rd1+ {[%emt 0:00:30]} 31. Kh2 {[%emt 0:00:04]} Rd2 {[%emt 0:00:23]} 32. a4 {[%emt 0:01:54]} Rxf2 {[%emt 0:00:28]} 33. Rxb7 {[%emt 0:00:04]} Rb2 {[%emt 0:00:45]} 34. Kg3 {[%emt 0:01:00]} e4 {[%emt 0:00:48]} 35. Kf4 {[%emt 0:00:45]} Rxg2 {[%emt 0:00:21]} 36. Kxe4 {[%emt 0:00:11]} Rg3 {[%emt 0:00:26]} 37. b4 {[%emt 0:00:32]} Rxh3 {[%emt 0:00:09]} 38. a5 {[%emt 0:00:18]} Kh7 {[%emt 0:00:34]} 39. Kd4 {[%emt 0:00:41]} g5 {[%emt 0:00:24]} 40. Re7 {[%emt 0:00:39]} Kg6 {[%emt 0:51:03]} 41. Re6+ {[%emt 0:07:21]} Kf5 {[%emt 0:00:00]} 42. Rxa6 {[%emt 0:03:44]} g4 {[%emt 0:00:00]} 43. Rc6 {[%emt 0:02:59]} g3 {[%emt 0:00:00]} 44. Rc1 {[%emt 0:02:04]} g2 {[%emt 0:00:00]} 45. Rg1 {[%emt 0:00:18]} Rg3 {[%emt 0:00:00]} 46. Kd5 {[%emt 0:11:09]} Kg4 {[%emt 0:00:00]} 47. a6 {[%emt 0:01:17]} Kh3 {[%emt 0:00:00]} 48. b5 {[%emt 0:01:52]} Ra3 {[%emt 0:00:00]} 49. Kc5 {[%emt 0:04:22]} Kh2 {[%emt 0:00:00]} 50. Rxg2+ {[%emt 0:05:51]} Kxg2 {[%emt 0:00:00]} 51. Kb6 {[%emt 0:00:52]} g5 {[%emt 0:00:00]} 52. Ka7 {[%emt 0:00:27]} g4 {[%emt 0:00:14]} 53. b6 {[%emt 0:00:27]} g3 {[%emt 0:00:07]} 54. b7 {[%emt 0:00:20]} Rb3 {[%emt 0:00:43]} 55. b8=Q {[%emt 0:00:12]} Rxb8 {[%emt 0:00:05]} 56. Kxb8 {[%emt 0:00:02]} Kf2 {[%emt 0:00:36]} 57. a7 {[%emt 0:00:05]} g2 {[%emt 0:00:05]} 58. a8=Q {[%emt 0:00:05]} g1=Q {[%emt 0:00:04]} 59. Qa7+ {[%emt 0:00:03]} Kf1 {[%emt 0:00:20]} 60. Qxg1+ {[%emt 0:00:02]} Kxg1 {[%emt 0:00:11]} 1/2-1/2

[Event "BL 2016-17"]
[Site "Germany"]
[Date "2017.02.19"]
[Round "8"]
[White "Gauglitz, Gernot"]
[Black "Zwirs, Nico"]
[Result "0-1"]
[ECO "A06"]
[WhiteElo "2394"]
[BlackElo "2402"]
[Annotator "TA"]
[PlyCount "50"]
[EventDate "2017.??.??"]
[EventType "team-tourn"]
[EventCountry "GER"]
[SourceTitle "playchess.com"]
[Source "ChessBase"]
[SourceQuality "1"]
[WhiteTeam "TU Dresden"]
[BlackTeam "Mülheim Nord"]
[TimeControl "40/6000+30:3000+30"]

1. Nf3 {[%emt 0:00:00]} d5 {[%emt 0:00:33]} 2. g3 {[%emt 0:00:10]} Nf6 {[%emt 0:00:05]} 3. Bg2 {[%emt 0:00:05]} c6 {[%emt 0:00:05]} 4. O-O {[%emt 0:00:30]} Bf5 {[%emt 0:00:06]} 5. d4 {[%emt 0:02:05]} e6 {[%emt 0:00:27]} 6. b3 {[%emt 0:06:47]} Be7 {[%emt 0:00:18]} 7. Bb2 {[%emt 0:00:13]} O-O {[%emt 0:00:30]} 8. c4 {[%emt 0:00:19]} h6 {[%emt 0:00:26]} 9. Nbd2 {[%emt 0:01:06]} a5 {[%emt 0:00:09]} 10. Ne5 {[%emt 0:04:24]} Nbd7 {[%emt 0:00:47]} 11. e3 {[%emt 0:01:43]} a4 {[%emt 0:08:05]} 12. Bc3 {[%emt 0:06:06]} Qc7 {[%emt 0:28:29]} 13. f4 {[%emt 0:06:37]} axb3 {[%emt 0:13:41]} 14. axb3 {[%emt 0:02:58]} Rxa1 {[%emt 0:00:08]} 15. Qxa1 {[%emt 0:00:28]} Nxe5 {[%emt 0:00:43]} 16. fxe5 {[%emt 0:00:48]} Ng4 {[%emt 0:02:20]} 17. Re1 {[%emt 0:09:45]} Bg5 {[%emt 0:00:52]} 18. Nf1 {[%emt 0:00:03]} Bd3 {[%emt 0:02:39]} 19. Bd2 {[%emt 0:00:09]} f6 {[%emt 0:04:31]} 20. Qc3 {[%emt 0:30:06]} Bxf1 {[%emt 0:02:55]} 21. Rxf1 {[%emt 0:00:04]} fxe5 {[%emt 0:00:22]} 22. Rxf8+ {[%emt 0:06:00]} Kxf8 {[%emt 0:00:59]} 23. h3 {[%emt 0:21:46]} exd4 {[%emt 0:04:02]} 24. Qxd4 {[%emt 0:00:11]} Ne5 {[%emt 0:02:12]} 25. Bc3 {[%emt 0:00:16]} Nf3+ {[%emt 0:01:04]} 0-1

[Event "BL 2016-17"]
[Site "Germany"]
[Date "2017.02.19"]
[Round "8"]
[White "Fruebing, Stefan"]
[Black "Baskin, Robert"]
[Result "1-0"]
[ECO "C06"]
[WhiteElo "2387"]
[BlackElo "2357"]
[Annotator "TA RC"]
[PlyCount "67"]
[EventDate "2017.??.??"]
[EventType "team-tourn"]
[EventCountry "GER"]
[SourceTitle "playchess.com"]
[Source "ChessBase"]
[SourceQuality "1"]
[WhiteTeam "König Tegel"]
[BlackTeam "Griesheim"]
[TimeControl "40/6000+30:3000+30"]

1. e4 {[%emt 0:00:00]} e6 {[%emt 0:00:12]} 2. d4 {[%emt 0:00:00]} d5 {[%emt 0:00:05]} 3. Nd2 {[%emt 0:00:00]} Nf6 {[%emt 0:03:53]} 4. e5 {[%emt 0:00:19]} Nfd7 {[%emt 0:00:04]} 5. Bd3 {[%emt 0:00:26]} c5 {[%emt 0:00:11]} 6. c3 {[%emt 0:00:16]} Nc6 {[%emt 0:00:06]} 7. Ne2 {[%emt 0:00:17]} cxd4 {[%emt 0:00:40]} 8. cxd4 {[%emt 0:00:09]} f6 {[%emt 0:00:05]} 9. exf6 {[%emt 0:01:06]} Nxf6 {[%emt 0:00:14]} 10. O-O {[%emt 0:01:13]} Bd6 {[%emt 0:01:18]} 11. Nf3 {[%emt 0:01:04]} O-O {[%emt 0:01:49]} 12. Bf4 {[%emt 0:10:53]} Nh5 {[%emt 0:01:46]} 13. Bxd6 {[%emt 0:09:59]} Qxd6 {[%emt 0:01:30]} 14. Ng3 {[%emt 0:00:08]} Nf4 {[%emt 0:15:31]} 15. Re1 {[%emt 0:00:29]} Bd7 {[%emt 0:03:38]} 16. Rc1 {[%emt 0:06:22]} Be8 {[%emt 0:03:17]} 17. a3 {[%emt 0:20:35]} Bg6 {[%emt 0:04:47]} 18. Bb5 {[%emt 0:00:38]} Ne7 {[%emt 0:13:32]} 19. Ne5 {[%emt 0:03:00]} Nf5 {[%emt 0:07:46]} 20. Nxf5 {[%emt 0:06:39]} Rxf5 {[%emt 0:01:51]} 21. Rc3 {[%emt 0:07:43]} Qb6 {[%emt 0:14:04]} 22. Rb3 {[%emt 0:05:04]} Rg5 {[%emt 0:02:36]} 23. Bf1 {[%emt 0:03:55]} Bh5 {[%emt 0:20:15]} 24. g4 {[%emt 0:01:54]} Qd8 {[%emt 0:01:48]} 25. Qc1 {[%emt 0:08:59]} Ng6 {[%emt 0:06:26]} 26. h3 {[%emt 0:01:33]} Nxe5 {[%emt 0:00:45]} 27. dxe5 {[%emt 0:00:18]} Be8 {[%emt 0:04:26]} 28. Bd3 {[%emt 0:01:21]} h5 {[%emt 0:00:36]} 29. f4 Rg6 30. g5 {[%emt 0:05:01]} Rc8 {[%emt 0:00:18]} 31. Qd2 {[%emt 0:00:31]} d4 {[%emt 0:00:30]} 32. Rxb7 {[%emt 0:02:09]} Bc6 {[%emt 0:00:50]} 33. Rb4 {[%emt 0:01:45]} a5 {[%emt 0:01:32]} 34. Rc4 {[%emt 0:01:09]} 1-0

[Event "BL 2016-17"]
[Site "St. Veit/Glan"]
[Date "2017.03.26"]
[Round "8"]
[White "Lehner, Oliver"]
[Black "Kuntner, Reinhard"]
[Result "1-0"]
[ECO "D28"]
[WhiteElo "2386"]
[BlackElo "2021"]
[Annotator "NA"]
[PlyCount "45"]
[EventDate "2017.??.??"]
[EventType "team-tourn"]
[EventCountry "AUT"]
[SourceTitle "playchess.com"]
[Source "ChessBase"]
[SourceQuality "1"]
[WhiteTeam "Jenbach"]
[BlackTeam "Nickelsdorf"]
[TimeControl "40/5400+30:1800+30"]

1. d4 {[%emt 0:00:00]} d5 {[%emt 0:00:42]} 2. c4 {[%emt 0:00:00]} dxc4 {[%emt 0:00:17]} 3. Nf3 {[%emt 0:00:00]} Nf6 {[%emt 0:00:33]} 4. e3 {[%emt 0:00:03]} e6 {[%emt 0:01:33]} 5. Bxc4 {[%emt 0:00:07]} a6 {[%emt 0:00:05]} 6. O-O {[%emt 0:02:42]} c5 {[%emt 0:01:04]} 7. Qe2 {[%emt 0:03:25]} b5 {[%emt 0:08:43]} 8. Bd3 {[%emt 0:02:17]} Nc6 {[%emt 0:03:13]} 9. dxc5 {[%emt 0:01:33]} Bxc5 {[%emt 0:03:17]} 10. a3 {[%emt 0:01:38]} O-O {[%emt 0:03:11]} 11. b4 {[%emt 0:00:25]} Be7 {[%emt 0:00:50]} 12. Bb2 {[%emt 0:02:32]} Bb7 {[%emt 0:00:57]} 13. Nbd2 {[%emt 0:01:12]} Qd5 {[%emt 0:04:29]} 14. Rac1 {[%emt 0:16:20]} Rfd8 {[%emt 0:06:55]} 15. Bb1 {[%emt 0:00:05]} Rd7 {[%emt 0:06:37]} (15... Qh5 $11) 16. Bxf6 {[%emt 0:08:53]} gxf6 {[%emt 0:05:27]} ({Don't consider} 16... Bxf6 $2 17. Ne4 Qh5 18. Nc5 $18 (18. Nxf6+ gxf6 19. Be4 Ne5 20. Bxb7 Rxb7 $11)) 17. Be4 {[%emt 0:00:05]} Qd6 {[%emt 0:00:16]} 18. Nb3 {[%emt 0:00:58]} Ne5 $18 {[%emt 0:24:19]} (18... f5 $16 {was called for.} 19. Rfd1 fxe4 20. Rxd6 exf3) 19. Bxb7 {[%emt 0:15:36]} Rxb7 {[%emt 0:00:51]} 20. Rfd1 {[%emt 0:00:11]} Qb8 {[%emt 0:04:41]} 21. Nxe5 {[%emt 0:09:10]} Qxe5 {[%emt 0:01:30]} 22. Na5 {[%emt 0:00:15]} Rc7 {[%emt 0:01:41]} 23. f4 {[%emt 0:00:56]} 1-0

[Event "BL 2016-17"]
[Site "St. Veit/Glan"]
[Date "2017.03.26"]
[Round "8"]
[White "Dobosz, Henryk"]
[Black "Volkmann, Friedrich Karl"]
[Result "1/2-1/2"]
[ECO "D10"]
[WhiteElo "2385"]
[BlackElo "2402"]
[Annotator "NA"]
[PlyCount "59"]
[EventDate "2017.??.??"]
[EventType "team-tourn"]
[EventCountry "AUT"]
[SourceTitle "playchess.com"]
[Source "ChessBase"]
[SourceQuality "1"]
[WhiteTeam "Bregenz"]
[BlackTeam "Wulkaprodersdorf"]
[TimeControl "40/5400+30:1800+30"]

1. d4 {[%emt 0:00:00]} d5 {[%emt 0:00:04]} 2. c4 {[%emt 0:00:00]} c6 {[%emt 0:00:04]} 3. cxd5 {[%emt 0:01:22]} cxd5 {[%emt 0:00:07]} 4. Nc3 {[%emt 0:00:08]} Nf6 {[%emt 0:00:15]} 5. Bf4 {[%emt 0:00:39]} Nc6 {[%emt 0:00:49]} 6. e3 {[%emt 0:00:20]} a6 {[%emt 0:00:43]} 7. Bd3 {[%emt 0:09:34]} Bg4 {[%emt 0:01:32]} 8. Nge2 {[%emt 0:09:42]} e6 {[%emt 0:09:00]} 9. O-O {[%emt 0:12:26] LiveBook: 363 Games} Be7 {[%emt 0:09:35]} 10. Qb3 {[%emt 0:12:47] D10: Slav Defence: 3 cxd5 (without early Nf3) and 3 Nc3} (10. Rc1 O-O 11. Na4 Nd7 12. a3 e5 13. dxe5 Ndxe5 14. h3 Bh5 15. Bb1 Bf6 16. Qc2 Bg6 17. Qb3 Bxb1 18. Rxb1 {1-0 (46) Sargissian,G (2686)-Laznicka,V (2679) Dubai 2014}) 10... Na5 {[%emt 0:06:07]} 11. Qc2 {[%emt 0:04:45]} Bh5 {[%emt 0:04:35]} 12. Bg3 $146 {[%emt 0:01:44]} (12. Rac1 Rc8 13. Qa4+ Nc6 14. Qb3 Na5 15. Qa4+ Nc6 16. Qb3 Na5 17. Qa4+ Nc6 18. Qb3 Na5 19. Qa4+ Nc6 20. Qb3 Na5 {½-½ (20) Nestorovic,D (2411)-Kasparov,S (2470) Paracin 2013}) 12... Bg6 {[%emt 0:03:54]} 13. Nf4 {[%emt 0:00:16]} Bxd3 {[%emt 0:00:35]} 14. Nxd3 {[%emt 0:00:08]} O-O {[%emt 0:01:16]} 15. Ne5 {[%emt 0:01:05]} Rc8 {[%emt 0:04:21]} 16. Qd3 {[%emt 0:05:16]} Nh5 {[%emt 0:03:51]} 17. Rac1 {[%emt 0:01:02]} Nxg3 {[%emt 0:00:41]} 18. hxg3 {[%emt 0:00:07]} Bd6 {[%emt 0:00:38]} 19. Nf3 {[%emt 0:07:46]} Rc7 {[%emt 0:17:46]} 20. Rc2 {[%emt 0:00:38]} Nc6 {[%emt 0:00:58]} 21. a3 $11 {[%emt 0:01:59]} Na5 {[%emt 0:01:59]} 22. e4 {[%emt 0:04:33]} dxe4 {[%emt 0:01:02]} 23. Nxe4 {[%emt 0:00:29]} Rd7 {[%emt 0:09:04]} 24. Qe3 {[%emt 0:08:08]} Nc6 {[%emt 0:01:24]} 25. Rd2 {[%emt 0:02:45]} Ne7 {[%emt 0:06:54]} 26. Ne5 {[%emt 0:02:42]} Nf5 {[%emt 0:08:52]} 27. Qc3 {[%emt 0:00:19]} Rc7 {[%emt 0:00:28]} 28. Qd3 {[%emt 0:01:52]} Qe7 {[%emt 0:01:05]} 29. Nc4 {[%emt 0:01:57]} Rfc8 {[%emt 0:01:09]} 30. Rc2 {[%emt 0:04:29]} 1/2-1/2